[Event "*** Titled Tuesday Blitz"]
[Site "Chess.com"]
[Date "2020.11.03"]
[Round "5"]
[White "NeverW84M8"]
[Black "MashaFromRussia"]
[Result "0-1"]
[WhiteElo "2476"]
[BlackElo "2358"]
[TimeControl "180+1"]
[EndTime "10:58:31 PST"]
[Termination "MashaFromRussia won by resignation"]

1. d4 {[%clk 0:03:00.9]} 1... Nf6 {[%clk 0:02:59.5]} 2. Bg5 {[%clk 0:03:01.5]}
2... c5 {[%clk 0:02:58.6]} 3. d5 {[%clk 0:03:01.3]} 3... Qb6 {[%clk 0:02:58.5]}
4. Nc3 {[%clk 0:03:01.1]} 4... Qxb2 {[%clk 0:02:58.3]} 5. Bd2 {[%clk 0:03:01.7]}
5... Qb6 {[%clk 0:02:58.7]} 6. e4 {[%clk 0:03:02]} 6... d6 {[%clk 0:02:58.7]} 7.
f4 {[%clk 0:03:02.7]} 7... Nbd7 {[%clk 0:02:58.8]} 8. Rb1 {[%clk 0:03:02.2]}
8... Qd8 {[%clk 0:02:58.4]} 9. Nf3 {[%clk 0:03:01.7]} 9... e5 {[%clk 0:02:58.7]}
10. fxe5 {[%clk 0:02:50]} 10... Nxe5 {[%clk 0:02:59.6]} 11. Nxe5 {[%clk
0:02:49.1]} 11... dxe5 {[%clk 0:03:00.5]} 12. Bb5+ {[%clk 0:02:48.3]} 12... Bd7
{[%clk 0:03:00.2]} 13. Bxd7+ {[%clk 0:02:40.7]} 13... Qxd7 {[%clk 0:02:57.5]}
14. O-O {[%clk 0:02:41.6]} 14... Be7 {[%clk 0:02:46.4]} 15. d6 {[%clk
0:02:30.9]} 15... Qxd6 {[%clk 0:02:40.3]} 16. Rxb7 {[%clk 0:02:22.6]} 16... O-O
{[%clk 0:02:37.5]} 17. Be3 {[%clk 0:02:00.4]} 17... Qe6 {[%clk 0:02:17.3]} 18.
Bg5 {[%clk 0:01:21.9]} 18... Rfd8 {[%clk 0:02:11.5]} 19. Qf3 {[%clk 0:01:21.1]}
19... Rd7 {[%clk 0:02:10.6]} 20. Rxd7 {[%clk 0:01:14.6]} 20... Qxd7 {[%clk
0:02:11.5]} 21. Bxf6 {[%clk 0:01:12.7]} 21... Bxf6 {[%clk 0:02:12.1]} 22. Nd5
{[%clk 0:01:13.1]} 22... Bg5 {[%clk 0:02:11.1]} 23. Qg3 {[%clk 0:01:10.8]} 23...
Qd8 {[%clk 0:01:30.9]} 24. Qxe5 {[%clk 0:01:06.3]} 24... h6 {[%clk 0:01:21.5]}
25. Qf5 {[%clk 0:00:47.4]} 25... Qf8 {[%clk 0:01:08.6]} 26. Qd7 {[%clk
0:00:44.9]} 26... Re8 {[%clk 0:01:04.9]} 27. Qc6 {[%clk 0:00:25.8]} 27... Re6
{[%clk 0:00:52.5]} 28. Qb7 {[%clk 0:00:25.5]} 28... c4 {[%clk 0:00:43]} 29. Kh1
{[%clk 0:00:24.3]} 29... a6 {[%clk 0:00:36.3]} 30. Nc7 {[%clk 0:00:20.4]} 30...
Re7 {[%clk 0:00:34.1]} 31. Qb6 {[%clk 0:00:14.2]} 31... Qd8 {[%clk 0:00:30.1]}
32. Nd5 {[%clk 0:00:13.6]} 32... Qxb6 {[%clk 0:00:29.5]} 33. Nxb6 {[%clk
0:00:14.4]} 33... Rxe4 {[%clk 0:00:30.1]} 34. g3 {[%clk 0:00:14.4]} 34... Re2
{[%clk 0:00:29.2]} 35. a4 {[%clk 0:00:13.6]} 35... Rxc2 {[%clk 0:00:28.8]} 36.
Rb1 {[%clk 0:00:13.7]} 36... c3 {[%clk 0:00:27.7]} 37. Nc4 {[%clk 0:00:12.9]}
37... Ra2 {[%clk 0:00:26.3]} 38. a5 {[%clk 0:00:12]} 38... c2 {[%clk 0:00:26.4]}
0-1

[Event "*** Titled Tuesday Blitz"]
[Site "Chess.com"]
[Date "2020.11.03"]
[Round "5"]
[White "Mikhail_Golubev"]
[Black "ajdemipopushi"]
[Result "1-0"]
[WhiteElo "2555"]
[BlackElo "2383"]
[TimeControl "180+1"]
[EndTime "10:58:32 PST"]
[Termination "Mikhail_Golubev won on time"]

1. e4 {[%clk 0:03:00.9]} 1... c5 {[%clk 0:02:59.5]} 2. Nf3 {[%clk 0:02:59.8]}
2... g6 {[%clk 0:02:59.9]} 3. Nc3 {[%clk 0:02:58.7]} 3... Bg7 {[%clk 0:02:59.7]}
4. d4 {[%clk 0:02:59.2]} 4... cxd4 {[%clk 0:03:00.1]} 5. Nxd4 {[%clk 0:02:59.1]}
5... Nc6 {[%clk 0:03:00.8]} 6. Be3 {[%clk 0:02:58.3]} 6... Nf6 {[%clk 0:03:01]}
7. Bc4 {[%clk 0:02:57.8]} 7... O-O {[%clk 0:03:00.6]} 8. Bb3 {[%clk 0:02:56.7]}
8... Ng4 {[%clk 0:03:00.4]} 9. Qxg4 {[%clk 0:02:55.5]} 9... Nxd4 {[%clk
0:03:00.5]} 10. Qd1 {[%clk 0:02:55]} 10... Nxb3 {[%clk 0:02:59.9]} 11. axb3
{[%clk 0:02:55.1]} 11... d6 {[%clk 0:03:00.5]} 12. Bd4 {[%clk 0:02:53.4]} 12...
a6 {[%clk 0:02:11.4]} 13. O-O {[%clk 0:02:47.3]} 13... Be6 {[%clk 0:02:09]} 14.
Bxg7 {[%clk 0:02:45.3]} 14... Kxg7 {[%clk 0:02:09.1]} 15. Qd4+ {[%clk
0:02:46.1]} 15... f6 {[%clk 0:02:09]} 16. Nd5 {[%clk 0:02:37.1]} 16... Bxd5
{[%clk 0:02:05.5]} 17. exd5 {[%clk 0:02:36.6]} 17... Qc7 {[%clk 0:02:04.9]} 18.
c3 {[%clk 0:02:26.1]} 18... Qc5 {[%clk 0:01:47.6]} 19. Qd2 {[%clk 0:02:24.3]}
19... Rf7 {[%clk 0:01:33.9]} 20. Rfe1 {[%clk 0:02:23.6]} 20... f5 {[%clk
0:01:17.1]} 21. Re6 {[%clk 0:02:13]} 21... f4 {[%clk 0:01:08.8]} 22. Rae1 {[%clk
0:02:11.3]} 22... Re8 {[%clk 0:01:07.3]} 23. h4 {[%clk 0:01:52.2]} 23... f3
{[%clk 0:00:37.6]} 24. g3 {[%clk 0:01:44.6]} 24... Qb5 {[%clk 0:00:32.7]} 25. h5
{[%clk 0:01:40.3]} 25... gxh5 {[%clk 0:00:11.6]} 26. b4 {[%clk 0:01:00.9]} 26...
Qc4 {[%clk 0:00:07.2]} 27. R1e4 {[%clk 0:00:57.9]} 27... Qa2 {[%clk 0:00:04.9]}
28. Kh2 {[%clk 0:00:49.8]} 28... Qb1 {[%clk 0:00:01.8]} 29. Rf4 {[%clk
0:00:16.1]} 1-0

[Event "*** Titled Tuesday Blitz"]
[Site "Chess.com"]
[Date "2020.11.03"]
[Round "5"]
[White "Sueetin"]
[Black "sboshaon21"]
[Result "1-0"]
[WhiteElo "2308"]
[BlackElo "2030"]
[TimeControl "180+1"]
[EndTime "10:58:32 PST"]
[Termination "Sueetin won on time"]

1. d4 {[%clk 0:03:00.9]} 1... d5 {[%clk 0:02:59.1]} 2. c4 {[%clk 0:03:00.9]}
2... c6 {[%clk 0:02:58.4]} 3. cxd5 {[%clk 0:03:01]} 3... cxd5 {[%clk 0:02:56.6]}
4. Bf4 {[%clk 0:03:01.5]} 4... Nf6 {[%clk 0:02:55.4]} 5. e3 {[%clk 0:03:02]}
5... e6 {[%clk 0:02:54.9]} 6. Nc3 {[%clk 0:03:02.3]} 6... a6 {[%clk 0:02:50]} 7.
Bd3 {[%clk 0:02:57.6]} 7... Bd6 {[%clk 0:02:50.1]} 8. Bxd6 {[%clk 0:02:56.9]}
8... Qxd6 {[%clk 0:02:49.9]} 9. Nf3 {[%clk 0:02:57.5]} 9... Nbd7 {[%clk
0:02:44.6]} 10. O-O {[%clk 0:02:56.6]} 10... O-O {[%clk 0:02:43.6]} 11. Rc1
{[%clk 0:02:56.7]} 11... b5 {[%clk 0:02:37.3]} 12. e4 {[%clk 0:02:17.4]} 12...
dxe4 {[%clk 0:02:36.2]} 13. Nxe4 {[%clk 0:02:11.6]} 13... Nxe4 {[%clk
0:02:10.9]} 14. Bxe4 {[%clk 0:02:12.5]} 14... Rb8 {[%clk 0:02:10.3]} 15. Rc6
{[%clk 0:02:03.4]} 15... Qb4 {[%clk 0:02:09.4]} 16. Qc2 {[%clk 0:01:51.6]} 16...
Nf6 {[%clk 0:02:07.9]} 17. a3 {[%clk 0:01:44.5]} 17... Qe7 {[%clk 0:01:39.8]}
18. Rc7 {[%clk 0:01:42.5]} 18... Qd6 {[%clk 0:01:36.7]} 19. Rc1 {[%clk
0:01:34.4]} 19... Nxe4 {[%clk 0:01:27]} 20. Qxe4 {[%clk 0:01:35.3]} 20... Qd5
{[%clk 0:00:50.5]} 21. Qxd5 {[%clk 0:01:33.7]} 21... exd5 {[%clk 0:00:50]} 22.
R1c5 {[%clk 0:01:30.5]} 22... Be6 {[%clk 0:00:49.5]} 23. Ne5 {[%clk 0:01:21.1]}
23... Rfe8 {[%clk 0:00:37.3]} 24. f3 {[%clk 0:01:02.6]} 24... a5 {[%clk
0:00:32.4]} 25. Nc6 {[%clk 0:00:59.8]} 25... Rb6 {[%clk 0:00:16.9]} 26. Nxa5
{[%clk 0:00:59.5]} 26... b4 {[%clk 0:00:16.4]} 27. axb4 {[%clk 0:00:49.4]} 27...
Rxb4 {[%clk 0:00:16.1]} 28. Nc6 {[%clk 0:00:38.8]} 28... Rxb2 {[%clk 0:00:12.1]}
29. h4 {[%clk 0:00:33.9]} 29... g6 {[%clk 0:00:11]} 30. Kh2 {[%clk 0:00:32.9]}
30... Bf5 {[%clk 0:00:07.2]} 31. Ne5 {[%clk 0:00:32.2]} 31... Be6 {[%clk
0:00:05.5]} 32. Ra7 {[%clk 0:00:31.2]} 32... Reb8 {[%clk 0:00:01.5]} 33. Rcc7
{[%clk 0:00:29.4]} 33... Rd2 {[%clk 0:00:01.8]} 34. Nxf7 {[%clk 0:00:29.1]} 1-0

[Event "*** Titled Tuesday Blitz"]
[Site "Chess.com"]
[Date "2020.11.03"]
[Round "5"]
[White "Chernobay_Artem"]
[Black "brunomorado"]
[Result "1-0"]
[WhiteElo "2624"]
[BlackElo "2441"]
[TimeControl "180+1"]
[EndTime "10:58:33 PST"]
[Termination "Chernobay_Artem won by resignation"]

1. d4 {[%clk 0:03:00.9]} 1... d5 {[%clk 0:02:59.8]} 2. c4 {[%clk 0:03:01.6]}
2... c6 {[%clk 0:03:00.1]} 3. Nf3 {[%clk 0:03:00.9]} 3... Nf6 {[%clk 0:02:59.5]}
4. Nc3 {[%clk 0:03:00.6]} 4... e6 {[%clk 0:02:59.8]} 5. Bg5 {[%clk 0:03:00.1]}
5... h6 {[%clk 0:03:00]} 6. Bxf6 {[%clk 0:02:58.8]} 6... Qxf6 {[%clk 0:03:00.9]}
7. e3 {[%clk 0:02:58.4]} 7... g6 {[%clk 0:02:57.2]} 8. Rc1 {[%clk 0:02:58.1]}
8... Nd7 {[%clk 0:02:57.3]} 9. Bd3 {[%clk 0:02:52.6]} 9... Bg7 {[%clk
0:02:57.1]} 10. e4 {[%clk 0:02:50.6]} 10... dxc4 {[%clk 0:02:46.3]} 11. e5
{[%clk 0:02:43.7]} 11... Qe7 {[%clk 0:02:46.4]} 12. Bxc4 {[%clk 0:02:43.5]}
12... c5 {[%clk 0:02:38.5]} 13. O-O {[%clk 0:02:24.1]} 13... cxd4 {[%clk
0:02:37]} 14. Qxd4 {[%clk 0:02:23.5]} 14... O-O {[%clk 0:02:34.5]} 15. Nb5
{[%clk 0:02:03.8]} 15... Nb6 {[%clk 0:02:23.1]} 16. Bd3 {[%clk 0:01:52.2]} 16...
Bd7 {[%clk 0:02:19.9]} 17. Rc7 {[%clk 0:01:42.7]} 17... Rfd8 {[%clk 0:01:46.6]}
18. Nd6 {[%clk 0:01:17.7]} 18... Nd5 {[%clk 0:01:45.7]} 19. Rxb7 {[%clk
0:01:15.7]} 19... Qxd6 {[%clk 0:01:32]} 20. exd6 {[%clk 0:01:16.6]} 20... Bxd4
{[%clk 0:01:32.9]} 21. Nxd4 {[%clk 0:01:15.4]} 21... Be8 {[%clk 0:01:33.3]} 22.
Bb5 {[%clk 0:00:55.1]} 22... Rxd6 {[%clk 0:00:19.2]} 23. Bxe8 {[%clk 0:00:53.7]}
23... Rxe8 {[%clk 0:00:20.1]} 24. Rxa7 {[%clk 0:00:53.3]} 24... Nb4 {[%clk
0:00:20.5]} 25. Nf3 {[%clk 0:00:51.2]} 25... Rc8 {[%clk 0:00:17.9]} 26. a3
{[%clk 0:00:47]} 26... Nd3 {[%clk 0:00:17.6]} 27. b4 {[%clk 0:00:45.5]} 27...
Rc2 {[%clk 0:00:17.1]} 28. g3 {[%clk 0:00:36.7]} 28... Rc3 {[%clk 0:00:12.4]}
29. Kg2 {[%clk 0:00:34.4]} 29... Nb2 {[%clk 0:00:12]} 30. b5 {[%clk 0:00:30]}
30... Rc4 {[%clk 0:00:09.9]} 31. Ne5 {[%clk 0:00:26.3]} 31... Rc5 {[%clk
0:00:09.2]} 32. Nxf7 {[%clk 0:00:24.6]} 32... Rb6 {[%clk 0:00:09.5]} 33. Nxh6+
{[%clk 0:00:23.9]} 33... Kh8 {[%clk 0:00:10.4]} 34. a4 {[%clk 0:00:24.5]} 1-0

[Event "*** Titled Tuesday Blitz"]
[Site "Chess.com"]
[Date "2020.11.03"]
[Round "5"]
[White "PawnEatingZombie"]
[Black "geordie_derraugh"]
[Result "0-1"]
[WhiteElo "2157"]
[BlackElo "2416"]
[TimeControl "180+1"]
[EndTime "10:58:35 PST"]
[Termination "geordie_derraugh won by checkmate"]

1. d4 {[%clk 0:03:00.9]} 1... Nf6 {[%clk 0:02:59.5]} 2. c4 {[%clk 0:03:00.7]}
2... e6 {[%clk 0:02:59.3]} 3. Nc3 {[%clk 0:03:01.1]} 3... Bb4 {[%clk 0:02:59.1]}
4. Qc2 {[%clk 0:03:01.6]} 4... c5 {[%clk 0:02:58.7]} 5. dxc5 {[%clk 0:03:01.7]}
5... Qc7 {[%clk 0:02:58.9]} 6. a3 {[%clk 0:02:54.1]} 6... Bxc5 {[%clk
0:02:58.6]} 7. Nf3 {[%clk 0:02:52.2]} 7... O-O {[%clk 0:02:54.5]} 8. e3 {[%clk
0:02:50.7]} 8... Nc6 {[%clk 0:02:47.6]} 9. Be2 {[%clk 0:02:49.6]} 9... b6 {[%clk
0:02:41]} 10. b3 {[%clk 0:02:49.6]} 10... Bb7 {[%clk 0:02:40.7]} 11. Bb2 {[%clk
0:02:50]} 11... d5 {[%clk 0:02:35.3]} 12. cxd5 {[%clk 0:02:46.3]} 12... exd5
{[%clk 0:02:35.5]} 13. O-O {[%clk 0:02:41.4]} 13... Rad8 {[%clk 0:02:33.9]} 14.
Nb5 {[%clk 0:02:38.1]} 14... Qe7 {[%clk 0:02:32.4]} 15. Nbd4 {[%clk 0:02:37]}
15... Nxd4 {[%clk 0:02:18.8]} 16. Nxd4 {[%clk 0:02:32]} 16... Ne4 {[%clk
0:02:08]} 17. Rad1 {[%clk 0:02:16.3]} 17... f6 {[%clk 0:02:05.7]} 18. b4 {[%clk
0:02:12.7]} 18... Bd6 {[%clk 0:02:03.1]} 19. Nf5 {[%clk 0:02:07.2]} 19... Qe6
{[%clk 0:02:01.9]} 20. Nxd6 {[%clk 0:02:07.4]} 20... Rxd6 {[%clk 0:01:56.5]} 21.
Bd4 {[%clk 0:02:03.8]} 21... Rc8 {[%clk 0:01:53.4]} 22. Qb2 {[%clk 0:02:01.4]}
22... Ng5 {[%clk 0:01:51.4]} 23. Rc1 {[%clk 0:01:50.4]} 23... Rdc6 {[%clk
0:01:51.1]} 24. Rxc6 {[%clk 0:01:49.1]} 24... Qxc6 {[%clk 0:01:50.4]} 25. Bd3
{[%clk 0:01:47]} 25... Ne6 {[%clk 0:01:47.8]} 26. g3 {[%clk 0:01:43.8]} 26...
Nxd4 {[%clk 0:01:43]} 27. Qxd4 {[%clk 0:01:43.2]} 27... Qc3 {[%clk 0:01:43.2]}
28. Ra1 {[%clk 0:01:02.9]} 28... Qxd4 {[%clk 0:01:39.6]} 29. exd4 {[%clk
0:01:03.8]} 29... Rc3 {[%clk 0:01:38.5]} 30. Bf1 {[%clk 0:01:02.5]} 30... Rc2
{[%clk 0:01:37.5]} 31. a4 {[%clk 0:00:46.7]} 31... Rb2 {[%clk 0:01:16.6]} 32. b5
{[%clk 0:00:42.4]} 32... Kf7 {[%clk 0:01:12.4]} 33. a5 {[%clk 0:00:42.6]} 33...
Bc8 {[%clk 0:01:04.3]} 34. axb6 {[%clk 0:00:40]} 34... axb6 {[%clk 0:01:05.2]}
35. Ra7+ {[%clk 0:00:33.5]} 35... Kg6 {[%clk 0:00:54.6]} 36. Bd3+ {[%clk
0:00:30.5]} 36... Kh6 {[%clk 0:00:50.2]} 37. Kg2 {[%clk 0:00:14.6]} 37... Rd2
{[%clk 0:00:49.4]} 38. Bf1 {[%clk 0:00:13.5]} 38... Rxd4 {[%clk 0:00:48.1]} 39.
Rc7 {[%clk 0:00:13.5]} 39... Bf5 {[%clk 0:00:45.9]} 40. Rc6 {[%clk 0:00:12.9]}
40... Be4+ {[%clk 0:00:44.6]} 41. f3 {[%clk 0:00:09.7]} 41... Rd2+ {[%clk
0:00:42]} 42. Kh3 {[%clk 0:00:09.2]} 42... Bxf3 {[%clk 0:00:41.1]} 43. Rxb6
{[%clk 0:00:08.6]} 43... Kg5 {[%clk 0:00:30.7]} 44. Rb7 {[%clk 0:00:07.5]} 44...
Bg4# {[%clk 0:00:30.3]} 0-1

[Event "*** Titled Tuesday Blitz"]
[Site "Chess.com"]
[Date "2020.11.03"]
[Round "5"]
[White "pfalcon1949"]
[Black "sopo-tereladze"]
[Result "0-1"]
[WhiteElo "1970"]
[BlackElo "2306"]
[TimeControl "180+1"]
[EndTime "10:58:36 PST"]
[Termination "sopo-tereladze won on time"]

1. c4 {[%clk 0:03:00.9]} 1... Nf6 {[%clk 0:02:59.2]} 2. Nc3 {[%clk 0:03:00.8]}
2... e6 {[%clk 0:03:00.1]} 3. e4 {[%clk 0:02:58.5]} 3... d5 {[%clk 0:02:56.9]}
4. e5 {[%clk 0:02:55.8]} 4... d4 {[%clk 0:02:56.9]} 5. exf6 {[%clk 0:02:54.4]}
5... dxc3 {[%clk 0:02:55.9]} 6. bxc3 {[%clk 0:02:54.2]} 6... Qxf6 {[%clk
0:02:54.8]} 7. d4 {[%clk 0:02:54.7]} 7... b6 {[%clk 0:02:51.1]} 8. Nf3 {[%clk
0:02:52.4]} 8... h6 {[%clk 0:02:49.7]} 9. Be2 {[%clk 0:02:39.1]} 9... Bb7 {[%clk
0:02:47.4]} 10. O-O {[%clk 0:02:39.6]} 10... Nd7 {[%clk 0:02:47.3]} 11. a4
{[%clk 0:02:39.1]} 11... Bd6 {[%clk 0:02:43.6]} 12. Re1 {[%clk 0:02:25.8]} 12...
O-O {[%clk 0:02:43.2]} 13. Be3 {[%clk 0:02:11.6]} 13... Rad8 {[%clk 0:02:11.5]}
14. a5 {[%clk 0:02:08]} 14... Rfe8 {[%clk 0:02:03.1]} 15. Qc2 {[%clk 0:02:02.7]}
15... e5 {[%clk 0:01:59.8]} 16. axb6 {[%clk 0:01:50.7]} 16... axb6 {[%clk
0:01:58.3]} 17. Ra7 {[%clk 0:01:45.3]} 17... exd4 {[%clk 0:01:45.8]} 18. cxd4
{[%clk 0:01:36]} 18... Be4 {[%clk 0:01:42.9]} 19. Qa2 {[%clk 0:01:30.1]} 19...
Ra8 {[%clk 0:01:32.4]} 20. Rxa8 {[%clk 0:01:15.2]} 20... Rxa8 {[%clk 0:01:33.3]}
21. Qb3 {[%clk 0:01:10.7]} 21... Qg6 {[%clk 0:01:21.5]} 22. c5 {[%clk
0:00:52.9]} 22... bxc5 {[%clk 0:01:15]} 23. dxc5 {[%clk 0:00:52.6]} 23... Nxc5
{[%clk 0:01:10.5]} 24. Qc4 {[%clk 0:00:42.8]} 24... Bd3 {[%clk 0:00:45.4]} 25.
Bxd3 {[%clk 0:00:31.8]} 25... Qxd3 {[%clk 0:00:43.9]} 26. Qg4 {[%clk 0:00:21.3]}
26... Qe4 {[%clk 0:00:31.9]} 27. Qh3 {[%clk 0:00:17.2]} 27... Nd3 {[%clk
0:00:29]} 28. Rf1 {[%clk 0:00:17.3]} 28... Bc5 {[%clk 0:00:23.8]} 29. Bxc5
{[%clk 0:00:15.2]} 29... Nxc5 {[%clk 0:00:24.7]} 30. Qh5 {[%clk 0:00:15]} 30...
Nd3 {[%clk 0:00:22.5]} 31. Qb5 {[%clk 0:00:12.8]} 31... c5 {[%clk 0:00:19.5]}
32. h3 {[%clk 0:00:09.7]} 32... c4 {[%clk 0:00:18.4]} 0-1

[Event "*** Titled Tuesday Blitz"]
[Site "Chess.com"]
[Date "2020.11.03"]
[Round "5"]
[White "gmmoranda"]
[Black "seorobert1971"]
[Result "0-1"]
[WhiteElo "2883"]
[BlackElo "2741"]
[TimeControl "180+1"]
[EndTime "10:58:37 PST"]
[Termination "seorobert1971 won by resignation"]

1. d4 {[%clk 0:03:00.9]} 1... Nf6 {[%clk 0:02:59.9]} 2. c4 {[%clk 0:03:01.1]}
2... g6 {[%clk 0:03:00.3]} 3. Nc3 {[%clk 0:03:00.9]} 3... d5 {[%clk 0:03:00.1]}
4. Nf3 {[%clk 0:02:59.5]} 4... Bg7 {[%clk 0:02:59.6]} 5. Qa4+ {[%clk 0:02:59.6]}
5... c6 {[%clk 0:02:56.9]} 6. cxd5 {[%clk 0:02:59.5]} 6... Nxd5 {[%clk
0:02:55.8]} 7. e4 {[%clk 0:02:59.7]} 7... Nxc3 {[%clk 0:02:55.4]} 8. bxc3 {[%clk
0:03:00.6]} 8... O-O {[%clk 0:02:55.8]} 9. Be2 {[%clk 0:03:00.7]} 9... c5 {[%clk
0:02:55.3]} 10. Be3 {[%clk 0:03:00.9]} 10... Nc6 {[%clk 0:02:51.9]} 11. O-O
{[%clk 0:02:59.4]} 11... Bd7 {[%clk 0:02:50.4]} 12. Qa3 {[%clk 0:02:50.2]} 12...
cxd4 {[%clk 0:02:48.6]} 13. cxd4 {[%clk 0:02:51.1]} 13... Bg4 {[%clk 0:02:44.6]}
14. d5 {[%clk 0:02:50.3]} 14... Bxa1 {[%clk 0:02:40.6]} 15. Rxa1 {[%clk
0:02:34.1]} 15... Bxf3 {[%clk 0:02:29.7]} 16. gxf3 {[%clk 0:02:17.3]} 16... Ne5
{[%clk 0:02:28.5]} 17. Qb2 {[%clk 0:02:11.5]} 17... f6 {[%clk 0:02:25.3]} 18.
Qxb7 {[%clk 0:01:57.3]} 18... Rb8 {[%clk 0:02:00]} 19. Qa6 {[%clk 0:01:53.3]}
19... Qd7 {[%clk 0:01:50.2]} 20. f4 {[%clk 0:01:38.1]} 20... Ng4 {[%clk
0:01:46.2]} 21. Qxa7 {[%clk 0:01:24.2]} 21... Rb7 {[%clk 0:01:45]} 22. Qd4
{[%clk 0:01:18.5]} 22... Nxe3 {[%clk 0:01:44.4]} 23. Qxe3 {[%clk 0:01:15.3]}
23... Rb4 {[%clk 0:01:42.5]} 24. Kg2 {[%clk 0:01:03.6]} 24... Ra8 {[%clk
0:01:40.2]} 25. Bf3 {[%clk 0:00:54.4]} 25... Rba4 {[%clk 0:01:28]} 26. e5 {[%clk
0:00:49.5]} 26... fxe5 {[%clk 0:01:27]} 27. fxe5 {[%clk 0:00:48.4]} 27... Ra3
{[%clk 0:01:25.3]} 28. Qg5 {[%clk 0:00:28.8]} 28... Rxf3 {[%clk 0:00:58.8]} 29.
e6 {[%clk 0:00:27.6]} 29... Qc7 {[%clk 0:00:40.3]} 30. Kxf3 {[%clk 0:00:27.7]}
30... Qc3+ {[%clk 0:00:40.2]} 31. Kg2 {[%clk 0:00:28.4]} 31... Qxa1 {[%clk
0:00:40]} 32. Qxe7 {[%clk 0:00:29.1]} 32... Rf8 {[%clk 0:00:35.9]} 33. Qh4
{[%clk 0:00:25.6]} 33... Qe5 {[%clk 0:00:29.7]} 34. Qc4 {[%clk 0:00:24.4]} 34...
Qg5+ {[%clk 0:00:28.3]} 35. Kf1 {[%clk 0:00:24.5]} 35... Qd2 {[%clk 0:00:27.7]}
36. Qc5 {[%clk 0:00:21.3]} 36... Qd1+ {[%clk 0:00:20.2]} 37. Kg2 {[%clk
0:00:21.7]} 37... Rf5 {[%clk 0:00:19.1]} 38. h4 {[%clk 0:00:18.8]} 38... Qxd5+
{[%clk 0:00:18.1]} 0-1

[Event "*** Titled Tuesday Blitz"]
[Site "Chess.com"]
[Date "2020.11.03"]
[Round "5"]
[White "Frogo47"]
[Black "esapunov"]
[Result "1-0"]
[WhiteElo "2459"]
[BlackElo "2630"]
[TimeControl "180+1"]
[EndTime "10:58:37 PST"]
[Termination "Frogo47 won by resignation"]

1. d4 {[%clk 0:03:00.9]} 1... Nf6 {[%clk 0:02:59.4]} 2. c4 {[%clk 0:03:01.3]}
2... g6 {[%clk 0:02:59.7]} 3. Nc3 {[%clk 0:03:01.1]} 3... Bg7 {[%clk 0:03:00.1]}
4. e4 {[%clk 0:03:01.3]} 4... O-O {[%clk 0:03:00.3]} 5. Be2 {[%clk 0:03:01.8]}
5... d6 {[%clk 0:03:00.7]} 6. Be3 {[%clk 0:03:02.2]} 6... Na6 {[%clk 0:02:59.8]}
7. g4 {[%clk 0:03:01.2]} 7... e5 {[%clk 0:02:58.9]} 8. d5 {[%clk 0:03:01]} 8...
Nc5 {[%clk 0:02:59.2]} 9. f3 {[%clk 0:03:01.4]} 9... h5 {[%clk 0:02:59.1]} 10.
g5 {[%clk 0:03:01.4]} 10... Nh7 {[%clk 0:02:59.4]} 11. h4 {[%clk 0:03:01.7]}
11... f6 {[%clk 0:02:59.8]} 12. gxf6 {[%clk 0:03:01.4]} 12... Bxf6 {[%clk
0:03:00.1]} 13. Bf2 {[%clk 0:03:01.9]} 13... a5 {[%clk 0:02:57.1]} 14. Qd2
{[%clk 0:03:02.1]} 14... Kg7 {[%clk 0:02:54.8]} 15. O-O-O {[%clk 0:02:59.6]}
15... Be7 {[%clk 0:02:54.8]} 16. Be3 {[%clk 0:02:58.8]} 16... Rf7 {[%clk
0:02:50.5]} 17. Nh3 {[%clk 0:02:57.8]} 17... Bxh4 {[%clk 0:02:18.2]} 18. Rdg1
{[%clk 0:02:57]} 18... Bxh3 {[%clk 0:02:04.7]} 19. Rxh3 {[%clk 0:02:56]} 19...
Qf6 {[%clk 0:02:05.1]} 20. f4 {[%clk 0:02:50.7]} 20... exf4 {[%clk 0:02:03.9]}
21. Bd4 {[%clk 0:02:50.3]} 21... Kh6 {[%clk 0:01:57.2]} 22. Bxf6 {[%clk
0:02:45.2]} 22... Bxf6 {[%clk 0:01:57.3]} 23. Kb1 {[%clk 0:02:26]} 23... Be5
{[%clk 0:01:53.7]} 24. Qd1 {[%clk 0:02:19.2]} 24... Nf6 {[%clk 0:01:46.1]} 25.
Bf3 {[%clk 0:02:12.4]} 25... Rh8 {[%clk 0:01:37.5]} 26. Qe2 {[%clk 0:02:04]}
26... Rhh7 {[%clk 0:01:37.1]} 27. Qg2 {[%clk 0:01:56.9]} 27... Rhg7 {[%clk
0:01:32]} 28. Qg5+ {[%clk 0:01:55.1]} 28... Kh7 {[%clk 0:01:32.2]} 29. Qh4
{[%clk 0:01:41]} 29... Kg8 {[%clk 0:00:51.6]} 30. Kc2 {[%clk 0:01:39.2]} 30...
c6 {[%clk 0:00:40.4]} 31. Rg5 {[%clk 0:01:32.5]} 31... Nh7 {[%clk 0:00:35.1]}
32. Rxe5 {[%clk 0:01:30.8]} 32... dxe5 {[%clk 0:00:34]} 33. Qd8+ {[%clk
0:01:30.4]} 33... Nf8 {[%clk 0:00:33.7]} 34. Qxa5 {[%clk 0:01:31.3]} 34... Ncd7
{[%clk 0:00:32.1]} 35. Qc7 {[%clk 0:01:28.2]} 35... Kh7 {[%clk 0:00:26.3]} 36.
Qxb7 {[%clk 0:01:25.5]} 36... cxd5 {[%clk 0:00:25.5]} 37. cxd5 {[%clk 0:01:25]}
37... Kh6 {[%clk 0:00:25.7]} 38. Qb4 {[%clk 0:01:21.9]} 38... Nf6 {[%clk
0:00:25]} 39. Qd6 {[%clk 0:01:14]} 39... N8d7 {[%clk 0:00:24.4]} 40. a4 {[%clk
0:01:10.7]} 40... Kh7 {[%clk 0:00:23.5]} 41. a5 {[%clk 0:01:09.8]} 41... Kh6
{[%clk 0:00:21.4]} 42. a6 {[%clk 0:01:08.6]} 42... Rg8 {[%clk 0:00:22.1]} 43. a7
{[%clk 0:01:05.6]} 43... Ra8 {[%clk 0:00:20.9]} 44. Nb5 {[%clk 0:01:05.5]} 44...
Kg7 {[%clk 0:00:20.3]} 45. Qc6 {[%clk 0:01:01.3]} 45... Rff8 {[%clk 0:00:20.6]}
46. Kb1 {[%clk 0:00:57.2]} 46... Rfc8 {[%clk 0:00:20.1]} 47. Qb7 {[%clk
0:00:57.3]} 47... Kh6 {[%clk 0:00:19.7]} 48. Nc7 {[%clk 0:00:56.5]} 48... Rxc7
{[%clk 0:00:19.8]} 49. Qxc7 {[%clk 0:00:56.7]} 49... g5 {[%clk 0:00:20.6]} 50.
Bxh5 {[%clk 0:00:55.3]} 50... Nxh5 {[%clk 0:00:20.6]} 51. Qxd7 {[%clk 0:00:55]}
51... f3 {[%clk 0:00:20.3]} 52. Qg4 {[%clk 0:00:54.4]} 1-0